Cogmind - Beta 15 @@@ ROGUE MODE // 2025.07.08 @ 23:20:00 Player: leiavoia Result: Destroyed by G-73 Enforcer with Heavy Laser Performance ------------- Evolutions (6) 3000 Regions Visited (17) 3400 Robots Destroyed (413) 2065 Value Destroyed (16884) 16884 Prototype IDs (63) 1260 Alien Tech Used (0) 0 Bonus (6461) 6461 TOTAL SCORE: 33070 Bonus ------- High Alert Combat Kills 2941 Follower Combat Kills 2519 Network Hubs Disabled 400 Aligned with FarCom 300 Met R17 at Cetus 500 Friendly Fire -199 Cogmind --------- Core Integrity 0/1150 Matter 120/300 Energy 97/100 System Corruption 4% Temperature Cool (18) Movement Core (100) Ox1 Location -4/Factory Parts ------- > --- POWER (2) -------- (None) > --- PROPULSION (6) --- (None) > --- UTILITY (8) ------ Graphene Brace > --- WEAPON (3) ------- Longsword +1 > --- INVENTORY (5) ---- Experimental Sensor Array IFF Parser Siege Cannon Peak State ------------ > --- POWER ------------ Reinforced Fission Core Quantum Reactor > --- PROPULSION ------- Improved Treads Armored Medium Treads Centrium Heavy Treads Centrium Heavy Treads > --- UTILITY ---------- Experimental Heat Sink Huge Storage Unit Experimental Phase Shifter Layered Heavy Armor Plating Graphene Brace Advanced Focal Shield Improved Hacking Suite > --- WEAPON ----------- Advanced KE Penetrator Heavy Linear Accelerator > --- INVENTORY -------- Graviton Reactor Graviton Reactor Quantum Reactor High-capacity Matter Pod High-capacity Matter Pod Experimental Sensor Array IFF Parser Surveybot 24 Chip Experimental Targeting Computer Advanced Transmission Jammer Layered Heavy Armor Plating Layered Heavy Armor Plating Experimental EM Shield Experimental EM Shield Neutron Cannon Siege Cannon Hardcell Cannon Hardcell Cannon Hardcell Cannon Longsword +1 Thermal Lance [Rating: 149] Favorites ----------- Power Reinforced Fission Core Engine Cooled Ion Engine Power Core Reinforced Fission Core Reactor Quantum Reactor Propulsion Light Treads Treads Light Treads Wheel Wheel Flight Unit Nuclear Pulse Array Utility Huge Storage Unit Device Improved Heat Sink Storage Huge Storage Unit Processor Advanced Visual Processing Unit Hackware Makeshift Hacking Suite Protection Improved Medium Armor Plating Weapon Improved Medium Laser Energy Gun Improved Medium Laser Energy Cannon Ion Cannon Ballistic Gun Heavy Assault Rifle Ballistic Cannon Improved Light Cannon Launcher Grenade Launcher Special Weapon Field Lobotomy Kit Slashing Weapon Longsword +1 Special Melee Weapon Advanced Datajack Build | -11 -10 -10 -9 -9 -9 -8 -8 -7 -7 -7 -7 -5 -5 -5 -5 -5 -4 ------- Run | Yrd Mat Min Mat Min Exi Min Mat Fac Sto Rec Scr Fac Ext Cet Arc Hub Fac Slots Evolved 12 | . . . 2 . . . 2 2 . . . 4 . . . . 2 Power 1 | . . . . . . . . . . . . 1 . . . . . Propulsion 4 | . . . . . . . 1 1 . . . 2 . . . . . Utility 6 | . . . 1 . . . 1 1 . . . 1 . . . . 2 Weapon 1 | . . . 1 . . . . . . . . . . . . . . Parts Attached 245 | 7 7 13 23 4 17 1 9 4 18 3 39 16 25 12 9 10 28 Power 25 | 1 . 2 2 . 2 . . 2 . . 1 3 5 3 1 1 2 Engine 11 | 1 . 2 2 . 1 . . 2 . . . 3 . . . . . Core 7 | . . . . . 1 . . . . . . . 5 . . 1 . Reactor 7 | . . . . . . . . . . . 1 . . 3 1 . 2 Propulsion 71 | 2 1 1 6 1 3 . 5 1 7 1 17 8 7 2 . 4 5 Treads 62 | 2 . 1 6 1 3 . 5 1 7 1 14 8 7 2 . 3 1 Leg . | . . . . . . . . . . . . . . . . . . Wheel 7 | . 1 . . . . . . . . . 3 . . . . 1 2 Hover . | . . . . . . . . . . . . . . . . . . Flight 2 | . . . . . . . . . . . . . . . . . 2 Utility 88 | 2 3 6 6 2 8 1 2 1 6 . 10 3 9 4 6 3 16 Device 34 | 1 1 2 1 1 4 1 1 1 . . 1 2 3 . 3 2 10 Storage 5 | 1 1 . 1 . . . . . . . 1 . . . . . 1 Processor 2 | . . . . . . . . . . . 1 . . . . . 1 Hackware 6 | . . . . . 2 . . . . . . 1 . . 3 . . Protection 41 | . 1 4 4 1 2 . 1 . 6 . 7 . 6 4 . 1 4 Artifact . | . . . . . . . . . . . . . . . . . . Weapon 61 | 2 3 4 9 1 4 . 2 . 5 2 11 2 4 3 2 2 5 Energy Gun 9 | 1 2 1 3 . . . . . . 1 1 . . . . . . Energy Cannon 5 | . . 1 1 . . . . . 1 . 1 . 1 . . . . Ballistic Gun 18 | 1 1 . 2 1 2 . 1 . 1 1 2 1 1 1 2 1 . Ballistic Cannon 12 | . . . 1 . . . . . 1 . 2 1 2 . . 1 4 Launcher 12 | . . 2 2 . 2 . . . 2 . 3 . . 1 . . . Special Weapon 3 | . . . . . . . . . . . 2 . . 1 . . . Impact Weapon . | . . . . . . . . . . . . . . . . . . Slashing Weapon 1 | . . . . . . . 1 . . . . . . . . . . Piercing Weapon . | . . . . . . . . . . . . . . . . . . Special Melee Weapon 1 | . . . . . . . . . . . . . . . . . 1 Unidentified Prototypes 23 | . . 1 4 1 3 . . 1 . . 4 . 1 3 . 1 4 Corrupted Parts 11 | . . . . . . . . . . . 1 . . 1 3 6 . System Corruption 65 | . . . . . . . . . . . 1 . . 2 26 36 . Parts Lost 77 | . 3 2 2 . 5 . 3 . . 1 14 3 12 2 1 11 18 Power 7 | . . . 1 . . . . . . . . . 2 . . 1 3 Propulsion 24 | . 1 1 . . 2 . 2 . . . 6 . 5 . . 3 4 Utility 23 | . . . 1 . 2 . . . . . 4 1 3 1 1 3 7 Weapon 23 | . 2 1 . . 1 . 1 . . 1 4 2 2 1 . 4 4 Highest Loss Streak 17 | . 2 1 1 . 3 . 1 . . 1 10 1 6 8 1 5 17 To Critical Strikes 5 | . . . . . 4 . . . . . . . 1 . . . . Average Backups 21 | . 14 24 22 24 22 23 22 22 22 23 22 20 21 19 20 18 14 Power 1 | . 1 1 1 2 2 1 1 1 1 2 2 2 3 3 3 2 2 Propulsion 3 | . 1 4 5 4 2 1 1 1 1 3 3 1 4 2 3 2 . Utility 8 | . 7 11 8 8 7 11 10 10 10 9 9 8 7 6 6 7 7 Weapon 7 | . 3 6 6 10 9 9 8 8 8 8 7 6 5 6 7 5 4 Tool/Special . | . . . . . . . . . . . . . . . . . . Unused Backups 56 | . 3 6 11 1 4 . 3 . 1 . 14 1 1 1 1 . 9 Power 10 | . . 1 2 . 3 . . . . . 1 . . 1 1 . 1 Propulsion 12 | . . 1 4 . . . 2 . . . 4 1 . . . . . Utility 26 | . 1 4 3 1 . . 1 . 1 . 7 . 1 . . . 7 Weapon 8 | . 2 . 2 . 1 . . . . . 2 . . . . . 1 Tool/Special . | . . . . . . . . . . . . . . . . . . Average Slot Usage (%) 95 | . 94 99 98 99 99 100 99 99 99 96 93 93 99 92 85 84 72 Engine 4 | . 14 14 10 11 4 . . 6 . . . 5 6 . . . . Core 4 | . . . . . 6 11 9 . 6 7 7 2 3 . . 1 2 Treads 24 | . 17 26 22 22 22 22 26 29 30 30 25 26 34 29 23 19 11 Wheel 1 | . 5 1 . . . . . . . . 3 8 . . . . 1 Device 9 | . 12 . 11 11 10 11 16 22 10 7 7 6 6 . 6 6 21 Storage 8 | . 14 14 11 11 11 11 9 7 7 7 7 5 5 5 5 5 3 Processor 1 | . . . . . . . . . . . 4 5 2 . . . . Protection 13 | . 1 13 10 10 11 11 10 7 19 23 17 9 12 20 16 10 5 Energy Gun 5 | . 16 3 15 11 4 11 8 . . 1 4 2 . . . . . Energy Cannon 1 | . . . 8 . . . . . 5 5 1 . . 4 . 1 1 Ballistic Gun 8 | . 11 2 6 11 19 15 17 15 11 3 2 5 9 7 16 12 3 Ballistic Cannon 3 | . . . 1 11 6 . . . 3 5 3 3 5 . . . 2 Launcher 2 | . . 20 . . 2 6 . . . . 1 . . . . 1 . Peak Build Rating 149 | 7 9 15 24 30 41 36 45 44 49 52 83 108 107 141 144 147 149 Average Rating 49 | 5 7 10 20 25 30 36 36 41 46 47 62 90 93 118 140 135 123 On Entrance 54 | . 7 9 12 22 26 36 36 44 43 47 45 65 102 71 141 141 128 Naked Turns . | . . . . . . . . . . . . . . . . . . Heaviest Build 189 | 15 89 94 108 109 144 125 129 111 143 141 144 154 150 161 155 164 189 Greatest Support 240 | 40 40 40 40 40 52 40 66 86 86 80 80 162 162 214 214 240 210 Greatest Overweight (x) 12 | . 8 9 2 2 3 3 3 1 2 1 12 7 1 . . 1 1 Average Overweight (x) 2 | . 4 2 2 2 2 3 1 1 1 1 4 2 . . . . . Largest Inventory Capacity 25 | 8 25 25 25 25 25 25 25 25 25 25 25 25 25 25 25 25 25 Average Capacity 24 | 7 20 25 25 25 25 25 25 25 25 25 25 25 25 25 25 25 18 Most Carried 25 | 1 25 25 25 25 25 25 25 25 25 25 25 25 25 25 25 25 25 Average Carried 23 | . 14 24 24 24 23 25 24 24 24 24 24 23 24 23 24 22 17 Final Capacity 25 | 8 25 25 25 25 25 25 25 25 25 25 25 25 25 25 25 25 5 Final Carried 25 | 1 25 25 25 25 25 25 25 25 25 25 25 25 22 25 25 24 5 Class Distribution -------------------- 43% | Scavenger-Tank 15% | Mutant 11% | Tank 7% | Commander-Mutant 7% | Bomber 6% | Commander-Tank 3% | Scavenger-Mutant Dominant Class ---------------- Mutant | -10/Materials Mutant | -10/Mines Bomber | -9/Materials Tank | -9/Mines Scavenger-Tank | -9/Exiles Scavenger-Tank | -8/Mines Tank | -8/Materials Mutant | -7/Factory Scavenger-Tank | -7/Storage Commander-Tank | -7/Recycling Scavenger-Tank | -7/Scraptown Scavenger-Tank | -5/Factory Scavenger-Tank | -5/Extension Scavenger-Tank | -5/Cetus Scavenger-Tank | -5/Archives Scavenger-Tank | -5/Hub_04(d) Scavenger-Tank | -4/Factory Resources | -11 -10 -10 -9 -9 -9 -8 -8 -7 -7 -7 -7 -5 -5 -5 -5 -5 -4 ----------- Run | Yrd Mat Min Mat Min Exi Min Mat Fac Sto Rec Scr Fac Ext Cet Arc Hub Fac Matter Collected 17604 | 158 525 1116 596 203 1056 710 291 . 1107 358 2417 1881 2196 948 534 1411 2097 Remotely 569 | . . 569 . . . . . . . . . . . . . . . Salvage Created 19707 | 110 553 233 1366 279 288 565 384 . 1283 452 4866 987 2115 713 704 2870 1939 Parts 957 | 15 29 19 82 14 32 24 23 . 70 17 250 58 64 31 33 111 85 Haulers Intercepted 14 | . 1 . 5 . . . 1 . 2 . . 1 2 . . 1 1 Recyclers Shooed 12 | 1 . . 1 . . 2 . . 2 1 . . 2 . . . 3 Parts Field Recycled . | . . . . . . . . . . . . . . . . . . Retrieved Matter . | . . . . . . . . . . . . . . . . . . Parts Self-Destructed 2 | . . . . . . . . . . . 2 . . . . . . Prevented . | . . . . . . . . . . . . . . . . . . Kills | -11 -10 -10 -9 -9 -9 -8 -8 -7 -7 -7 -7 -5 -5 -5 -5 -5 -4 ------- Run | Yrd Mat Min Mat Min Exi Min Mat Fac Sto Rec Scr Fac Ext Cet Arc Hub Fac Combat Hostiles Destroyed 316 | . 11 14 30 7 5 7 11 . 22 4 80 14 28 8 4 39 32 Melee 6 | . . . . . . . . . . . . . 1 . . 1 4 Guns 118 | . 9 5 11 5 1 4 6 . 9 . 22 12 15 . 4 9 6 Cannons 60 | . . 1 10 2 . . . . 4 4 4 1 12 . . . 22 AOE 112 | . 1 8 9 . 4 3 5 . 9 . 52 1 . . . 20 . Classes Destroyed 30 | 1 6 3 1 . 2 1 1 . 1 1 7 3 1 . 1 1 . Worker 18 | . . 1 2 1 . . . . 1 . . 3 2 . . 5 3 Builder 12 | . . . . . . . 1 . 3 . . . 3 . . 2 3 Tunneler 6 | 5 . . . 1 . . . . . . . . . . . . . Hauler 14 | . 1 . 5 . . . 1 . 2 . . 1 2 . . 1 1 Recycler 23 | . 1 . 2 1 . 4 . . 4 2 . . 5 . . . 4 Mechanic 1 | . 1 . . . . . . . . . . . . . . . . Operator 10 | . . . . . . . . . . . . . . . 9 . 1 Turret 2 | . . . . . 1 . . . . . 1 . . . . . . Watcher 12 | . 1 . 4 . . . 1 . . . . 1 . 2 . . 3 Swarmer 36 | . 3 3 11 4 . 3 4 . 3 . . . . . . . 5 Saboteur 2 | . . . . . . . . . . . . . . . . 2 . Grunt 95 | . 8 2 10 2 . 3 4 . 8 1 . 7 11 . . 27 12 Brawler 4 | . . . . . . . . . . 1 . . 1 . . 2 . Duelist 5 | . . . 1 1 . . . . . . . . 1 . . 2 . Protector 2 | . . . . . . . . . . . . 1 . . . 1 . Sentry 43 | . . 2 8 . . . 3 . 8 2 . . 9 . 4 1 6 Demolisher 3 | . . . . . . . . . . . . . 3 . . . . Hunter 9 | . . . . . . 1 . . 1 . . 3 1 . . 1 2 Programmer 12 | . . . . . . . . . 2 1 . 1 . . . 1 7 Heavy 1 | . . . . . . . . . . . . 1 . . . . . Behemoth 3 | . . . . . . . . . . . . 1 2 . . . . Cetus Guard 8 | . . . . . . . . . . . . . . 8 . . . Lightning 2 | . . . . . . . . . . . . . . . . 2 . Bolteater 2 | . . . . . . . . . . . 2 . . . . . . Federalist 6 | . . . . . . . . . . . 6 . . . . . . Explorer 2 | . . . . . . . . . . . 2 . . . . . . Ranger 6 | . . . . . . . . . . . 6 . . . . . . Guru 9 | . . . . . . . . . . . 9 . . . . . . Scrapper 27 | . . . . . . . . . . . 27 . . . . . . Elite 26 | . . . . . . . . . . . 26 . . . . . . Zionite 7 | . . . . . 7 . . . . . . . . . . . . Assembled 11 | . . 7 . . 4 . . . . . . . . . . . . Thug 1 | . . . . . . . . . . . 1 . . . . . . Best Kill Streak 29 | 5 3 3 9 4 4 2 9 . 13 3 29 5 7 5 4 14 10 Combat Bots Only 29 | . 2 3 7 4 4 2 8 . 9 3 29 3 6 4 1 13 8 Max Kills in Single Turn 5 | 1 2 3 2 2 3 2 5 . 2 1 3 1 2 2 1 4 2 Gunslinging . | . . . . . . . . . . . . . . . . . . Exploded 4 | . 1 3 2 . 3 2 4 . 2 . 3 1 . . . 4 . Melee 1 | . . . . . . . . . . . . . 1 . . 1 1 Uniques/NPCs Destroyed 5 | . . . . . 4 . . . . . 1 . . . . . . 8R-AWN (-9/Exiles) EX-HEX (-9/Exiles) EX-DEC (-9/Exiles) EX-BIN (-9/Exiles) Optimus (-7/Scraptown) Combat | -11 -10 -10 -9 -9 -9 -8 -8 -7 -7 -7 -7 -5 -5 -5 -5 -5 -4 -------- Run | Yrd Mat Min Mat Min Exi Min Mat Fac Sto Rec Scr Fac Ext Cet Arc Hub Fac Hostile Shots Fired 2216 | . 52 48 119 28 88 36 44 . 246 75 326 140 220 38 20 234 502 Missed 603 | . 13 13 39 4 20 13 15 . 92 36 69 42 47 16 3 61 120 Hits 1613 | . 39 35 80 24 68 23 29 . 154 39 257 98 173 22 17 173 382 Melee 38 | . . . . 6 . . . . . . 25 . . . . 6 1 Projectile 1575 | . 39 35 80 18 68 23 29 . 154 39 232 98 173 22 17 167 381 AOE 8 | . . . . . . . . . . . . . 7 . . . 1 Critical Strikes 117 | . 1 1 . 3 38 . 1 . 2 1 13 6 13 2 . 16 20 Actively Blocked 20 | . . . . . . . . . . . . . . . . . 20 Part Disruptions 2 | . . 1 . . . . . . 1 . . . . . . . . Damage Taken 29229 | . 561 505 1075 363 1096 297 359 . 1572 412 4445 2538 3808 599 445 4556 6598 Core 2896 | . 106 84 134 17 76 4 62 . 112 5 349 220 257 60 24 218 1168 Absorbed by Shields 1312 | . . . . . . . . . . . . . 358 . . . 954 Reduced by Siege Mode 369 | . . . . . . . . . . . 169 . . . 28 84 88 Redirected to Shielding 9 | . 4 5 . . . . . . . . . . . . . . . Ignored by Resistances 1377 | . . . 40 16 480 54 47 . 87 . 32 . . . . . 621 Regen/Repaired (Parts) 891 | . 88 . 36 . . . . . . . 767 . . . . . . Core Remaining (%) 51 | 100 . 24 . . . 42 88 . . . 33 . . . . 22 . Volleys Fired 967 | 7 59 30 81 19 80 22 19 . 68 12 107 86 118 13 38 101 107 Largest 3 | 2 2 2 3 3 3 3 3 . 3 3 3 3 3 3 3 3 3 Hottest 180 | 60 80 110 172 112 90 107 107 . 123 180 108 110 129 81 105 160 180 Shots Fired 2257 | 14 117 59 210 57 174 60 53 . 188 32 232 210 354 15 112 192 178 Gun 1454 | 14 117 33 126 38 142 57 51 . 106 8 134 124 209 1 112 136 46 Cannon 574 | . . 3 66 19 . . . . 62 24 21 82 145 1 . 19 132 Launcher 220 | . . 23 18 . 32 3 2 . 20 . 70 4 . 11 . 37 . Special 9 | . . . . . . . . . . . 7 . . 2 . . . Kinetic 1473 | 7 37 15 37 38 142 38 34 . 120 19 56 185 354 2 112 137 140 Thermal 471 | . 3 21 155 19 . 19 17 . 48 13 99 21 . . . 18 38 Explosive 112 | . . 23 18 . 20 3 2 . 20 . 22 4 . . . . . Electromagnetic 192 | 7 77 . . . 12 . . . . . 48 . . 11 . 37 . Robot Hit Streak 30 | 10 20 6 12 8 13 10 14 . 13 7 25 10 20 5 14 7 30 Robot Miss Streak 9 | . 5 1 5 2 3 2 3 . 5 2 5 7 9 3 6 9 3 Penetration Max 1 | . . . . . . . . . . . 1 1 1 . 1 1 1 Secondary Targets 4 | . 1 1 . . . . 1 . . . . . . . . 1 . Max Gunslinging Chain 1 | . 1 1 . . . . 1 . . . . . . . . 1 . Autonomous 121 | . . . . . . . . . . . 99 22 . . . . . Shots Hit Robots 1352 | 10 73 30 122 34 102 32 33 . 127 18 150 114 232 5 53 85 132 Core Hits 812 | 6 26 27 60 13 36 18 20 . 85 10 191 45 89 15 25 89 57 Critical Kills 31 | . . . . . . . . . . . 3 7 8 . 8 4 1 Critical Parts Destroyed 39 | . 1 . . . . . . . . . 4 10 7 . 5 9 3 Critical Strikes 124 | 1 4 1 6 2 . . 2 . . 1 9 23 33 . 14 14 14 Burn 9 | . . 1 6 . . . 2 . . . . . . . . . . Destroy 74 | . 1 . . . . . . . . . 7 17 17 . 14 14 4 Blast 37 | . . . . 2 . . . . . 1 2 6 16 . . . 10 Corrupt 4 | 1 3 . . . . . . . . . . . . . . . . Melee Attacks 66 | . . . . . . . 1 2 1 1 . 11 . . . 2 48 Impact . | . . . . . . . . . . . . . . . . . . Slashing 66 | . . . . . . . 1 2 1 1 . 11 . . . 2 48 Piercing . | . . . . . . . . . . . . . . . . . . Sneak Attacks 3 | . . . . . . . . . . 1 . . . . . . 2 Combat Hostiles . | . . . . . . . . . . . . . . . . . . Follow-up Attacks . | . . . . . . . . . . . . . . . . . . Damage Inflicted 51942 | 149 1171 880 3103 686 2459 772 1026 . 3720 654 9773 3695 6771 1099 1635 6229 8120 Guns 19825 | 148 949 316 1255 393 1597 508 536 . 1338 116 2997 1926 3574 . 1599 1825 748 Cannons 13790 | . . 35 669 284 . . . . 943 443 370 1365 3122 . . 267 6292 Explosions 16930 | . 222 502 1166 . 862 237 480 . 1415 . 6406 404 . 1099 . 4137 . Melee 1100 | . . . . . . . . . . 92 . . . . . . 1008 Ramming 297 | 1 . 27 13 9 . 27 10 . 24 3 . . 75 . 36 . 72 Kinetic 24934 | 51 168 116 234 437 1597 337 345 . 1541 287 690 2761 6696 . 1599 1825 6250 Thermal 10085 | . 249 235 1690 240 . 171 191 . 740 272 3667 934 . . . 906 790 Explosive 7685 | . . 502 1166 . 754 237 480 . 1415 . 3131 . . . . . . Electromagnetic 7841 | 97 754 . . . 108 . . . . . 2285 . . 1099 . 3498 . Impact . | . . . . . . . . . . . . . . . . . . Slashing 1100 | . . . . . . . . . . 92 . . . . . . 1008 Piercing . | . . . . . . . . . . . . . . . . . . Highest Corruption 75 | . . . . . . . . . 1 2 1 . . 2 22 75 4 Average Corruption 3 | . . . . . . . . . 1 1 1 . . 2 16 34 2 Corruption Purged 13 | . . . . . . . . . . . . . . . 13 . . Corruption Blocked . | . . . . . . . . . . . . . . . . . . Effects 153 | . . . . . . . . . 10 20 43 . . 1 22 47 10 Message Errors 29 | . . . . . . . . . 2 2 10 . . . 4 9 2 Matter Fused 45 | . . . . . . . . . 5 6 14 . . 1 6 8 5 Heat Flow Errors 15 | . . . . . . . . . 1 4 3 . . . 4 2 1 Energy Discharges 13 | . . . . . . . . . 2 3 6 . . . 2 . . Parts Rejected 1 | . . . . . . . . . . . . . . . . 1 . Parts Fused 2 | . . . . . . . . . . 1 . . . . . 1 . Data Loss (minor) 14 | . . . . . . . . . . . 6 . . . 2 5 1 Data Loss (major) 5 | . . . . . . . . . . 2 1 . . . . 2 . Misfires 6 | . . . . . . . . . . 1 2 . . . 1 1 1 Alerts 3 | . . . . . . . . . . . 1 . . . . 2 . Misdirections 1 | . . . . . . . . . . . . . . . . 1 . Weapon Failures 19 | . . . . . . . . . . 1 . . . . 3 15 . Overload Shots . | . . . . . . . . . . . . . . . . . . Overflow Damage 1418 | . . . 40 10 35 . 11 . 54 56 96 151 40 22 . 25 878 Projectiles 855 | . . . . 10 . . . . 1 56 . 17 38 . . 7 726 Explosions 409 | . . . 40 . 35 . 11 . 53 . 96 134 . 22 . 18 . Melee 154 | . . . . . . . . . . . . . 2 . . . 152 Knockbacks 52 | . . . . 4 . . 1 . . 1 . 10 10 . . . 26 Impact 2 | . . . . . . . 1 . . . . . . . . . 1 Kinetic 46 | . . . . 3 . . . . . 1 . 10 10 . . . 22 Secondary 4 | . . . . 1 . . . . . . . . . . . . 3 Self-Inflicted Damage 930 | . 76 48 168 . 63 74 7 . 168 . 95 18 . 9 . 204 . Shots 37 | . 2 3 4 . 6 2 1 . 6 . 3 1 . 1 . 8 . Rammed 23 | 1 . 2 2 2 . 3 2 . 2 1 . . 3 . 1 . 4 Targets Rammed 26 | 1 . 2 2 2 . 3 2 . 2 1 . . 5 . 1 . 5 Kicked . | . . . . . . . . . . . . . . . . . . Crushed 3 | . . . . . . . . . . . . . 2 . . . 1 Highest Temperature 802 | . 336 199 257 60 312 139 103 . 87 226 311 315 220 158 318 370 802 Average Temperature 85 | . 89 59 70 16 89 44 29 . 16 55 74 81 45 35 110 126 216 Received Heat Transfer 5946 | . 213 160 237 66 . 27 135 . 492 99 683 685 992 36 36 856 1229 Effects 40 | . . . . . 2 . . . . . 3 . . . . . 35 Shutdowns 5 | . . . . . . . . . . . . . . . . . 5 Energy Bleed 4 | . . . . . 1 . . . . . . . . . . . 3 Interference 11 | . . . . . . . . . . . 3 . . . . . 8 Matter Decay 4 | . . . . . . . . . . . . . . . . . 4 Short Circuit 4 | . . . . . . . . . . . . . . . . . 4 Damage (minor) 7 | . . . . . 1 . . . . . . . . . . . 6 Damage (major) 4 | . . . . . . . . . . . . . . . . . 4 Damage (core) 1 | . . . . . . . . . . . . . . . . . 1 Siege Activations 8 | . . . . . . . . . . . 1 . . . 3 1 3 Total Turns 285 | . . . . . . . . . . . 105 . . . 54 44 82 Longest Duration 105 | . . . . . . . . . . . 105 . . . 31 44 47 Martial Activations . | . . . . . . . . . . . . . . . . . . Shielding Activations . | . . . . . . . . . . . . . . . . . . Robots Disrupted 1 | . . . . . . . . . . . 1 . . . . . . Combat Hostiles 1 | . . . . . . . . . . . 1 . . . . . . Robots Corrupted 24 | . 1 . . . 1 . . . . . 2 . . 8 . 10 2 Combat Hostiles 20 | . 1 . . . . . . . . . 2 . . 8 . 9 . Parts Fried 70 | 1 5 . . . . . . . . . 24 . 1 10 . 28 1 Impact Corruptions 4 | . . . . 1 . . . . . . . . 1 . . . 2 Robots Melted . | . . . . . . . . . . . . . . . . . . Combat Hostiles . | . . . . . . . . . . . . . . . . . . Parts Melted 33 | . . 2 8 1 . 1 3 . . . 16 1 . . . 1 . Heat Transferred 12441 | . 374 740 4218 508 . 370 555 . 1184 408 2758 800 . . . 526 . Parts Sabotaged 6 | . . . . . . . . . . . . . . . . 3 3 Parts Stolen 2 | . . . . . . . . . . . 2 . . . . . . Parts Stripped . | . . . . . . . . . . . . . . . . . . Power Chain Reactions 28 | . 2 . . . . . . . . . 16 . . . . 10 . Alert | -11 -10 -10 -9 -9 -9 -8 -8 -7 -7 -7 -7 -5 -5 -5 -5 -5 -4 ------- Run | Yrd Mat Min Mat Min Exi Min Mat Fac Sto Rec Scr Fac Ext Cet Arc Hub Fac Maximum Alert Level 4 | . . . 1 . . . 1 . 3 1 . 2 4 3 1 4 4 Low Security (%) 64 | 100 100 100 35 100 . 100 92 100 34 83 . 55 13 . . 21 . Level 1 17 | . . . 64 . . . 7 . 31 16 . . 56 . 100 1 . Level 2 12 | . . . . . . . . . 28 . . 43 12 78 . 22 75 Level 3 3 | . . . . . . . . . 5 . . . 13 21 . 17 13 Level 4 2 | . . . . . . . . . . . . . 4 . . 36 11 Level 5 . | . . . . . . . . . . . . . . . . . . High Security . | . . . . . . . . . . . . . . . . . . Max Security . | . . . . . . . . . . . . . . . . . . Peak Influence 1363 | 15 81 107 373 104 . 108 219 81 719 274 . 632 1233 727 361 1363 1284 Initial 680 | . . 22 . 104 . . . 81 . 274 . . 303 680 263 94 663 Average 192 | 3 21 14 182 10 . 18 39 22 291 107 . 264 431 680 318 717 728 Influence Increases 10719 | 25 482 269 1089 212 . 287 346 2 1244 257 5 1044 2061 179 239 1649 1329 Destroy 0b10 Robot/C 5340 | . 220 140 620 160 . 140 220 . 620 120 . 420 1040 160 80 760 640 Destroy 0b10 Robot/NC 530 | 25 20 5 70 15 . 20 15 . 55 10 5 45 70 10 45 45 75 Destroy Leader 992 | . 54 20 170 20 . 30 54 . 174 . . 88 112 . . 122 148 Allied During Kill 770 | . . 4 6 2 . . . . 134 39 . 82 503 . . . . Trap Triggered on 0b10 30 | . . . 10 . . . . . . . . . 20 . . . . Successful Hack 276 | . 28 . 31 . . . 25 . 32 21 . 36 20 7 . . 76 Select Force Hacks 110 | . . . . . . . . . . 60 . . . . . 50 . Disable Machine 555 | . 45 15 45 . . 15 . . 30 . . 135 60 . 60 105 45 Anti-Garrison Action 150 | . . . . . . . . . . . . . . . . 150 . Destroy Structure 1321 | . 10 85 77 . . 52 32 2 184 7 . 178 176 2 54 312 150 Partial Spotted 90 | . 15 . . . . . . . . . . . . . . . 75 Lose Combat Pursuer 555 | . 90 . 60 15 . 30 . . 15 . . 60 60 . . 105 120 Influence Decreases 9496 | 25 423 328 820 481 . 287 165 183 540 961 . 429 1466 735 628 564 1461 Entered New Map 2853 | . . 37 . 165 . . . 100 . 430 . 5 317 535 396 176 692 Time Decay 5315 | 25 393 291 646 296 . 287 161 83 480 501 . 294 589 180 222 278 589 Lost Part 524 | . 30 . 10 . . . 4 . . 10 . 30 120 20 10 110 180 Lost Ally 654 | . . . 14 20 . . . . 60 20 . 100 440 . . . . Purge Threat 150 | . . . 150 . . . . . . . . . . . . . . Squads Dispatched 53 | . 2 . 3 1 . . 1 1 8 . . 12 5 . . 10 10 Investigation 6 | . 1 . . . . . . . . . . 1 . . . 3 1 Extermination 9 | . . . . . . . . 1 3 . . 2 . . . 1 2 Reinforcement 20 | . 1 . 3 . . . 1 . 3 . . 4 2 . . 1 5 Assault 16 | . . . . 1 . . . . . . . 5 3 . . 5 2 Garrison 2 | . . . . . . . . . 2 . . . . . . . . Intercept . | . . . . . . . . . . . . . . . . . . Searches Triggered . | . . . . . . . . . . . . . . . . . . Construction Impeded 9 | . . . 2 . . . . . 1 . . 1 2 . . 1 2 Haulers Reinforced 4 | . . . . . . . . . 2 . . 1 . . . . 1 Active Scanning Responses . | . . . . . . . . . . . . . . . . . . Cargo Convoy Interrupts 1 | . . . . . . . . . . . . 1 . . . . . Stealth | -11 -10 -10 -9 -9 -9 -8 -8 -7 -7 -7 -7 -5 -5 -5 -5 -5 -4 --------- Run | Yrd Mat Min Mat Min Exi Min Mat Fac Sto Rec Scr Fac Ext Cet Arc Hub Fac Distress Signals 21 | . 2 . 1 . . . 1 . 3 1 . 1 1 2 1 5 3 Communications Jammed 5 | . . . . . . . . . . . . . . . . . 5 Distress Signals 5 | . . . . . . . . . . . . . . . . . 5 Times Spotted 513 | . 24 15 40 10 23 9 13 . 35 7 87 47 71 9 16 52 55 Peak Tracking Total 19 | . 4 3 7 5 9 3 9 . 5 6 19 11 12 5 1 14 10 Tactical Retreats 41 | . 6 2 4 1 8 2 . . 1 . 1 4 3 . . 3 6 Traps | -11 -10 -10 -9 -9 -9 -8 -8 -7 -7 -7 -7 -5 -5 -5 -5 -5 -4 ------- Run | Yrd Mat Min Mat Min Exi Min Mat Fac Sto Rec Scr Fac Ext Cet Arc Hub Fac Traps Triggered 5 | . 3 . . . . . . . . . . . 1 . . . 1 Indirectly . | . . . . . . . . . . . . . . . . . . Trap Hack Attempts . | . . . . . . . . . . . . . . . . . . Triggered . | . . . . . . . . . . . . . . . . . . Disarmed . | . . . . . . . . . . . . . . . . . . Reprogrammed 10 | . . . 4 . . . . . . . . . 6 . . . . Reused 3 | . . . 1 . . . . . . . . . 2 . . . . Traps Extracted . | . . . . . . . . . . . . . . . . . . Installed . | . . . . . . . . . . . . . . . . . . Triggered 3 | . . . 1 . . . . . . . . . 2 . . . . Most Traps Carried 4 | . . 4 4 . . . . . . . . . . . . . . Machines | -11 -10 -10 -9 -9 -9 -8 -8 -7 -7 -7 -7 -5 -5 -5 -5 -5 -4 ---------- Run | Yrd Mat Min Mat Min Exi Min Mat Fac Sto Rec Scr Fac Ext Cet Arc Hub Fac Machines Disabled 86 | . 3 1 3 . 22 1 . . 2 . 19 9 7 . 4 8 7 Max in Single Turn 5 | . 1 1 1 . 5 1 . . 2 . 2 4 1 . 1 2 1 Garrison Access 5 | . . . . . . . . . . . . 2 . . . 1 2 Network Hub 2 | . . . . . . . . . . . . . . . . 2 . Machines Repaired . | . . . . . . . . . . . . . . . . . . Machines Dismantled . | . . . . . . . . . . . . . . . . . . Machines Sabotaged 1 | . . . . . . . . . . . . . . . . 1 . Overloaded Fab Kills . | . . . . . . . . . . . . . . . . . . Hacking | -11 -10 -10 -9 -9 -9 -8 -8 -7 -7 -7 -7 -5 -5 -5 -5 -5 -4 --------- Run | Yrd Mat Min Mat Min Exi Min Mat Fac Sto Rec Scr Fac Ext Cet Arc Hub Fac Machines Accessed 75 | . 10 2 8 1 2 . 3 1 8 8 9 2 8 1 . 3 9 Terminals 47 | . 7 1 6 . . . 3 . 7 5 . 2 8 1 . 3 4 Fabricators 1 | . . . . . . . . . . . . . . . . . 1 Repair Stations 4 | . 1 . 1 . . . . 1 1 . . . . . . . . Recycling Units 8 | . 2 . 1 . . . . . . 3 . . . . . . 2 Scanalyzers . | . . . . . . . . . . . . . . . . . . Garrison Access 2 | . . . . . . . . . . . . . . . . . 2 Total Hacks 206 | . 36 3 17 1 2 . 8 1 14 17 43 7 16 2 . 7 32 Successful 113 | . 18 1 8 1 2 . 3 . 5 6 43 3 7 1 . 2 13 Failed 92 | . 17 2 9 . . . 5 1 9 11 . 4 9 1 . 5 19 Catastrophic 26 | . 2 1 1 . . . 1 1 4 5 . 2 2 . . 3 4 Database Lockouts 1 | . 1 . . . . . . . . . . . . . . . . Manual 62 | . 17 2 5 . 1 . 4 . 2 7 . 5 1 . . 6 12 Terminals 119 | . 24 2 11 . . . 8 . 13 14 . 7 16 2 . 7 15 Fabricators 3 | . . . . . . . . . . . . . . . . . 3 Repair Stations 10 | . 4 . 4 . . . . 1 1 . . . . . . . . Recycling Units 22 | . 8 . 2 . . . . . . 3 . . . . . . 9 Scanalyzers . | . . . . . . . . . . . . . . . . . . Garrison Access 5 | . . . . . . . . . . . . . . . . . 5 Terminal Hacks 82 | . 8 1 5 1 2 . 2 . 5 3 43 2 7 1 . . 2 Record 43 | . . . . . 1 . . . . . 42 . . . . . . Part Schematic 1 | . 1 . . . . . . . . . . . . . . . . Robot Analysis 4 | . 1 . 1 . . . . . . 2 . . . . . . . Prototype ID Bank 3 | . . . 1 . . . . . 1 1 . . . . . . . Open Door 11 | . . 1 . 1 . . . . 2 . . . 6 1 . . . Branch Access Points 3 | . 1 . 1 . . . 1 . . . . . . . . . . Emergency Access Points 1 | . 1 . . . . . . . . . . . . . . . . Recycling Unit Index 1 | . . . . . . . . . . . . 1 . . . . . Unreport Threat 1 | . . . 1 . . . . . . . . . . . . . . Locate Traps 1 | . . . . . . . . . 1 . . . . . . . . Reprogram Traps 2 | . . . 1 . . . . . . . . . 1 . . . . Security Status 1 | . 1 . . . . . . . . . . . . . . . . Patrol Status 1 | . . . . . . . . . . . . . . . . . 1 Hauler Manifests 3 | . 1 . . . . . . . 1 . . 1 . . . . . Registered Components 2 | . 1 . . . . . . . . . . . . . . . 1 Zone Layout 2 | . 1 . . . . . 1 . . . . . . . . . . Proto ID Catalog 2 | . . . . . 1 . . . . . 1 . . . . . . Fabricator Hacks 1 | . . . . . . . . . . . . . . . . . 1 Network Status 1 | . . . . . . . . . . . . . . . . . 1 Repair Station Hacks 5 | . 3 . 2 . . . . . . . . . . . . . . Scan Component 3 | . 2 . 1 . . . . . . . . . . . . . . Repair 2 | . 1 . 1 . . . . . . . . . . . . . . Recycling Unit Hacks 6 | . 2 . 1 . . . . . . 1 . . . . . . 2 Retrieve Components 6 | . 2 . 1 . . . . . . 1 . . . . . . 2 Scanalyzer . | . . . . . . . . . . . . . . . . . . Garrison Access Hacks 2 | . . . . . . . . . . . . . . . . . 2 Seal Access 2 | . . . . . . . . . . . . . . . . . 2 Unauthorized Hacks 17 | . 5 . . . . . 1 . . 2 . 1 . . . 2 6 Terminals 10 | . 5 . . . . . 1 . . . . 1 . . . 2 1 Botnet 3 | . . . . . . . 1 . . . . 1 . . . . 1 Skim 5 | . 5 . . . . . . . . . . . . . . . . Sabotage 2 | . . . . . . . . . . . . . . . . 2 . Fabricators . | . . . . . . . . . . . . . . . . . . Repair Stations . | . . . . . . . . . . . . . . . . . . Recycling Units 7 | . . . . . . . . . . 2 . . . . . . 5 Reject 2 | . . . . . . . . . . . . . . . . . 2 Recyclers 1 | . . . . . . . . . . . . . . . . . 1 Mask 2 | . . . . . . . . . . . . . . . . . 2 Tunnel 2 | . . . . . . . . . . 2 . . . . . . . Scanalyzers . | . . . . . . . . . . . . . . . . . . Garrison Access . | . . . . . . . . . . . . . . . . . . Data Cores Recovered . | . . . . . . . . . . . . . . . . . . Used . | . . . . . . . . . . . . . . . . . . Hacking Detections 49 | . 9 1 7 . . . 3 1 7 5 . 2 4 1 . 3 6 Full Trace Events 3 | . 1 . . . . . . . . . . 1 . . . 1 . Feedback Events 1 | . . . . . . . . . . . . . . . . 1 . Hackware Fried 1 | . . . . . . . . . . . . . . . . 1 . Feedback Blocked . | . . . . . . . . . . . . . . . . . . Robot Schematics Acquired . | . . . . . . . . . . . . . . . . . . Robots Built . | . . . . . . . . . . . . . . . . . . Authchips . | . . . . . . . . . . . . . . . . . . Time . | . . . . . . . . . . . . . . . . . . Total Robot Build Rating . | . . . . . . . . . . . . . . . . . . Part Schematics Acquired 1 | . 1 . . . . . . . . . . . . . . . . Parts Built . | . . . . . . . . . . . . . . . . . . Authchips . | . . . . . . . . . . . . . . . . . . Time . | . . . . . . . . . . . . . . . . . . Total Part Build Rating . | . . . . . . . . . . . . . . . . . . Parts Repaired 2 | . 1 . 1 . . . . . . . . . . . . . . Time 42 | . 26 . 16 . . . . . . . . . . . . . . Parts Recycled . | . . . . . . . . . . . . . . . . . . Recycled Matter . | . . . . . . . . . . . . . . . . . . Retrieved Matter . | . . . . . . . . . . . . . . . . . . Retrieved Components 27 | . 10 . 10 . . . . . . 6 . . . . . . 1 Parts Scanalyzed . | . . . . . . . . . . . . . . . . . . Part Schematics Acquired . | . . . . . . . . . . . . . . . . . . Parts Damaged . | . . . . . . . . . . . . . . . . . . Bothacking | -11 -10 -10 -9 -9 -9 -8 -8 -7 -7 -7 -7 -5 -5 -5 -5 -5 -4 ------------ Run | Yrd Mat Min Mat Min Exi Min Mat Fac Sto Rec Scr Fac Ext Cet Arc Hub Fac Used RIF Installer . | . . . . . . . . . . . . . . . . . . Robots Hacked . | . . . . . . . . . . . . . . . . . . Non-combat . | . . . . . . . . . . . . . . . . . . Combat . | . . . . . . . . . . . . . . . . . . Robot Hacks Applied . | . . . . . . . . . . . . . . . . . . Relay Couplers Released 10 | . . . . . . . . . . . . 2 . . . 5 3 Machine Destruction 4 | . . . . . . . . . . . . 2 . . . 2 . Programmers 6 | . . . . . . . . . . . . . . . . 3 3 Fabnet Peak Effective % . | . . . . . . . . . . . . . . . . . . Robots Rewired 25 | . . . . . . . . . . 6 . . 19 . . . . Allies Hacked 3 | . . . . . . . . . . 3 . . . . . . . Hacks Repelled . | . . . . . . . . . . . . . . . . . . Allies | -11 -10 -10 -9 -9 -9 -8 -8 -7 -7 -7 -7 -5 -5 -5 -5 -5 -4 -------- Run | Yrd Mat Min Mat Min Exi Min Mat Fac Sto Rec Scr Fac Ext Cet Arc Hub Fac Total Allies 62 | . . 4 . 1 . . . . 10 6 5 7 29 . . . . Largest Group 14 | . . 3 3 1 . . . . 10 10 10 2 14 . . . . Highest-Rated Group 514 | . . 40 40 31 . . . . 173 207 382 76 514 . . . . Highest-Rated Ally 191 | . . 31 16 31 . . . . 29 34 191 47 159 . . . . Total Orders 16 | . . . . . . . . . . 3 11 2 . . . . . STAY 4 | . . . . . . . . . . 2 2 . . . . . . FOLLOW 4 | . . . . . . . . . . 1 3 . . . . . . EXPLORE 5 | . . . . . . . . . . . 5 . . . . . . RETURN 3 | . . . . . . . . . . . 1 2 . . . . . Ally Attacks 449 | . . . 14 5 . . . . 75 10 114 85 146 . . . . Total Damage 11019 | . . . 213 62 . . . . 1051 131 4275 1751 3536 . . . . Kills 91 | . . . 3 1 . . . . 10 2 34 11 30 . . . . Allies Corrupted 1 | . . . . . . . . . . . . . 1 . . . . Allies Melted 1 | . . . . . . . . . . . 1 . . . . . . Turrets Deployed 2 | . . . . . . . . . . . 1 1 . . . . . Field Lobotomies 5 | . . . . . . . . . . . 5 . . . . . . Intel | -11 -10 -10 -9 -9 -9 -8 -8 -7 -7 -7 -7 -5 -5 -5 -5 -5 -4 ------- Run | Yrd Mat Min Mat Min Exi Min Mat Fac Sto Rec Scr Fac Ext Cet Arc Hub Fac Active Infowar (turns) 12516 | 28 554 86 . 1 . . 641 324 559 . 7108 941 772 . 2 116 1384 Optics 8821 | . . . . . . . . . . . 7108 941 772 . . . . Sensors 7895 | . . . . 1 . . 1 . . . 5656 412 518 . 2 114 1191 IFF 557 | . . . . . . . . . . . . . . . . . 557 Structural 2101 | . . . . . . . 640 324 210 . . . . . . 101 826 Seismic 1550 | 28 554 86 . . . . . 323 559 . . . . . . . . Jamming 874 | . . . . . . . . . . . . . . . . . 874 Robot Analysis Total 4 | . 1 . 1 . . . . . . 2 . . . . . . . Derelict Logs Recovered 5 | . . 3 . 2 . . . . . . . . . . . . . Drone Launches 49 | . . . . . . . . . . . 5 44 . . . . . Drone Recoveries 41 | . . . . . . . . . . . 3 38 . . . . . Exploration | -11 -10 -10 -9 -9 -9 -8 -8 -7 -7 -7 -7 -5 -5 -5 -5 -5 -4 ------------- Run | Yrd Mat Min Mat Min Exi Min Mat Fac Sto Rec Scr Fac Ext Cet Arc Hub Fac Turns Passed 39387 | 133 2037 3081 2674 2595 4860 2820 762 324 1724 1594 10708 941 1847 361 478 607 1841 Spaces Moved 12893 | 64 722 633 702 642 1254 647 230 128 577 584 3802 392 731 178 176 157 1274 Core 7 | 2 . . . . . . . . . . . . . . . . 5 Treads 9873 | 62 409 589 702 642 1254 647 230 128 577 584 2203 149 731 178 176 157 455 Legs . | . . . . . . . . . . . . . . . . . . Wheels 2199 | . 313 44 . . . . . . . . 1599 243 . . . . . Hover . | . . . . . . . . . . . . . . . . . . Flight 814 | . . . . . . . . . . . . . . . . . 814 Fastest Speed 37 | 50 160 200 320 320 320 400 240 240 240 240 140 140 165 165 160 160 37 Average Speed 245 | 156 241 312 320 320 361 400 290 240 240 240 232 152 171 165 163 170 89 Slowest Speed 640 | 160 480 320 320 320 400 400 400 240 320 240 640 248 248 166 165 240 240 Overloaded Moves . | . . . . . . . . . . . . . . . . . . Propulsion Burnouts . | . . . . . . . . . . . . . . . . . . Robots Hopped 4 | . . . . . . . . . . . . . . . . . 4 Potential Cave-ins . | . . . . . . . . . . . . . . . . . . Cave-ins Triggered . | . . . . . . . . . . . . . . . . . . Exploration Rate (%) 67 | 4 97 97 84 96 91 97 29 3 90 98 97 15 87 72 93 28 35 Regions Visited 17 Branch Regions 11 Pre-discovered Areas 8 | . 3 . . . 1 . . . . 2 2 . . . . . . Known Exits Taken 6 | . 1 . 1 . . . 1 1 . 1 1 . . . . . . Unknown Exits Taken 11 | 1 . 1 . 1 1 1 . . 1 . . 1 1 1 1 1 . Scrap Searched 9 | . . 2 . 1 . 2 . . . . 4 . . . . . . Spaces Dug 163 | . . 6 12 . . 59 1 2 21 . . 20 . . . 2 40 Terrain Destroyed 1349 | . 8 115 95 . 98 64 33 2 266 7 119 114 71 . 30 252 75 Melee 44 | . . . . . . . 1 2 1 . . 11 . . . 2 27 Projectile 310 | . . . . . 11 1 . . 15 7 8 66 71 . 30 54 47 AOE 992 | . 8 115 95 . 87 63 32 . 250 . 111 36 . . . 195 . Terrain Rammed . | . . . . . . . . . . . . . . . . . . Walls Destroyed . | . . . . . . . . . . . . . . . . . . Machines Disabled . | . . . . . . . . . . . . . . . . . . Actions | -11 -10 -10 -9 -9 -9 -8 -8 -7 -7 -7 -7 -5 -5 -5 -5 -5 -4 --------- Run | Yrd Mat Min Mat Min Exi Min Mat Fac Sto Rec Scr Fac Ext Cet Arc Hub Fac Total 18744 | 79 906 1681 981 1138 1452 827 280 145 774 750 5544 571 1095 231 278 316 1696 Wait 3598 | . 85 967 95 460 30 153 2 . 72 77 1453 26 14 . 46 3 115 Move 12869 | 63 721 632 701 641 1253 646 229 127 576 583 3801 391 731 177 175 156 1266 Hop 4 | . . . . . . . . . . . . . . . . . 4 Pick Up 245 | 1 28 14 27 4 28 . 8 4 9 . 42 12 9 10 . 15 34 Fast Attach 113 | 7 3 2 12 4 7 . 1 2 5 2 14 9 6 7 7 5 20 Attach 112 | . 2 2 3 2 10 . 4 2 . 1 18 7 9 7 1 15 29 Detach 30 | . 1 1 1 . 1 . . . . 1 4 . 1 1 2 4 13 Swap 207 | . 3 14 18 1 11 2 8 3 18 1 61 14 19 4 4 10 16 Drop 277 | . 4 17 41 5 32 1 6 5 23 4 43 15 21 12 4 5 39 Fire 967 | 7 59 30 81 19 80 22 19 . 68 12 107 86 118 13 38 101 107 Melee 66 | . . . . . . . 1 2 1 1 . 11 . . . 2 48 Ram 1 | . . . . . . . . . . . . . . . . . 1 Kick . | . . . . . . . . . . . . . . . . . . Crush 24 | 1 . 2 2 2 . 3 2 . 2 1 . . 4 . 1 . 4 Escape Stasis . | . . . . . . . . . . . . . . . . . . Rewire 231 | . . . . . . . . . . 67 1 . 163 . . . . Trap . | . . . . . . . . . . . . . . . . . . Miscellaneous . | . . . . . . . . . . . . . . . . . . Route ------- -11/Scrapyard -10/Materials (discovered 4 exits: *Mat x3 / *Min) -10/Mines (discovered 3 exits: *Mat x2 / [*Sub]) -9/Materials (discovered 5 exits: *Mat x3 / *Min x2) -9/Mines (discovered 4 exits: *Mat x2 / *Exi / [*Zio]) -9/Exiles (discovered 2 exits: [*Min x2]) -8/Mines (discovered 2 exits: *Mat x2) -8/Materials (discovered 2 exits: *Fac x2) -7/Factory -7/Storage (discovered 2 exits: [*Fac] / *Rec) -7/Recycling (discovered 2 exits: *Fac / *Scr) -7/Scraptown (discovered 2 exits: *Fac x2) -5/Factory -5/Extension (discovered 2 exits: *Fac / *Cet) -5/Cetus (discovered 2 exits: *Fac / [*Arc]) -5/Archives (discovered 3 exits: *Fac / *Hub x2) -5/Hub_04(d) -4/Factory (discovered 3 exits: [*Res x2] / [*Arm]) History --------- Turn | Location | Event 13 | -11/Scrapyard | Discovered new exit (range 14) 134 | -11/Scrapyard | Entered Materials 306 | -10/Materials | Build established: Mutant 469 | -10/Materials | Discovered new exit (range 15) 537 | -10/Materials | Central database locked down 812 | -10/Materials | Discovered new exit (range 5) 826 | -10/Materials | Learned Storage security intel 878 | -10/Materials | Learned location of 1 exit from Recycling 919 | -10/Materials | Learned location of Recycling (-7) 950 | -10/Materials | Learned location of 1 exit from Recycling 973 | -10/Materials | Learned location of 1 exit from Recycling 986 | -10/Materials | Learned location of Mines (-10) 1004 | -10/Materials | Learned location of 2 exits from Subcaves 1028 | -10/Materials | Learned 4 Subcaves zone layouts 1063 | -10/Materials | Learned location of Storage (-7) 1562 | -10/Materials | Discovered new exit (range 6) 1796 | -10/Materials | Discovered new exit (range 14) 2000 | -10/Materials | Repaired Lgt. Treads 2129 | -10/Materials | Identified exit to Mines 2171 | -10/Materials | Entered Mines 2174 | -10/Mines | Received a Mining Laser from a helpful Derelict 2176 | -10/Mines | Assembled infested the area 2181 | -10/Mines | Assisted by a Guerilla fighting off Assembled 2195 | -10/Mines | Core integrity fell below 50% 2201 | -10/Mines | Learned Materials terminal intel 3510 | -10/Mines | Discovered new exit (range 15) 3561 | -10/Mines | Learned Materials emergency access door positions 4027 | -10/Mines | Assisted by bots powering up and referring to "LRC-V3" 4190 | -10/Mines | Discovered new exit (range 6) 4220 | -10/Mines | Found the Drone Emporium 4239 | -10/Mines | Found Prototype Device 4239 | -10/Mines | Identified Splice Drone Bay 4787 | -10/Mines | Discovered new exit (range 7) 4873 | -10/Mines | Found a hidden stash of uninstalled traps 5252 | -10/Mines | Entered Materials 5252 | -9/Materials | Accompanied by 3 allies 5252 | -9/Materials | Evolved 2 slots: Utility x1, Weapon x1 5254 | -9/Materials | Loaded intel: 11 terminal locations 5594 | -9/Materials | Identified exit to Mines 5600 | -9/Materials | Build established: Bomber 5976 | -9/Materials | Discovered new exit (range 16) 6058 | -9/Materials | Build established: Scavenger-Bomber 6139 | -9/Materials | Destroyed 7 combat bots 6662 | -9/Materials | Build established: Bomber 6729 | -9/Materials | Discovered new exit (range 5) 7506 | -9/Materials | Repaired Hvy. Assault Rifle 7540 | -9/Materials | Discovered new exit (range 8) 7812 | -9/Materials | Build established: Scavenger-Bomber 7926 | -9/Materials | Entered Mines 7941 | -9/Mines | Met a Derelict bent on vengeance 7952 | -9/Mines | Found a damaged Exp. Sensor Array with a note attached 7959 | -9/Mines | Found Prototype Device 7959 | -9/Mines | Identified Exp. Sensor Array 8104 | -9/Mines | Met a Derelict testing a Signal Generator 8258 | -9/Mines | Build established: Bomber 8419 | -9/Mines | A Derelict revealed a hidden shortcut to a safe place 8421 | -9/Mines | Discovered new exit (range 3) 8588 | -9/Mines | Learned location of 1 exit from Materials 8722 | -9/Mines | Discovered new exit (range 3) 8759 | -9/Mines | Met a Derelict who couldn't figure out how to use a Trap Extractor 9543 | -9/Mines | Build established: Tank 9778 | -9/Mines | Learned location of 1 exit from Materials 10022 | -9/Mines | Deemed a non-threat by the Exiles lab entrance 10022 | -9/Mines | Discovered new exit (range 5) 10253 | -9/Mines | Received a Rocket Launcher from a helpful Derelict 10521 | -9/Mines | Entered Exiles 10598 | -9/Exiles | Met 8R-AWN 10653 | -9/Exiles | Met EX-HEX 10809 | -9/Exiles | Met EX-DEC 10864 | -9/Exiles | Learned location of Zion (-7) 10931 | -9/Exiles | Met EX-BIN 11878 | -9/Exiles | Aligned with FarCom system 11882 | -9/Exiles | Given EX-Vault access code 11958 | -9/Exiles | Opened EX-Vault 11974 | -9/Exiles | Found Longsword +1 11979 | -9/Exiles | Found Field Lobotomy Kit 11989 | -9/Exiles | Found AWS/Thermal 12051 | -9/Exiles | Warned to stay clear of 0b10 Research branches 12363 | -9/Exiles | Attacked by the Exiles 12548 | -9/Exiles | Lost 3 parts (1n1u1w) 12556 | -9/Exiles | Destroyed 8R-AWN 12674 | -9/Exiles | Found Prototype Device 12674 | -9/Exiles | Identified AS-neutralizer No. 17b 12748 | -9/Exiles | Core integrity fell below 50% 13114 | -9/Exiles | Build established: Scavenger-Tank 13368 | -9/Exiles | Destroyed EX-HEX 13421 | -9/Exiles | Destroyed EX-DEC 13466 | -9/Exiles | Destroyed EX-BIN 13491 | -9/Exiles | Found Deploy-a-Sentry 13541 | -9/Exiles | Found Prototype Device 13541 | -9/Exiles | Identified System Purifier 14159 | -9/Exiles | Discovered new exit (range 15) 15068 | -9/Exiles | Discovered new exit (range 14) 15210 | -9/Exiles | Found Prototype Ballistic Gun 15381 | -9/Exiles | Stole four prototypes: AWS/Thermal, Field Lobotomy Kit, Longsword +1, Deploy-a-Sentry 15381 | -9/Exiles | Entered Mines 15860 | -8/Mines | Discovered new exit (range 10) 15980 | -8/Mines | Discovered new exit (range 7) 17709 | -8/Mines | Build established: Tank 18201 | -8/Mines | Entered Materials 18201 | -8/Materials | Evolved 2 slots: Propulsion x1, Utility x1 18202 | -8/Materials | Identified exit to Factory 18692 | -8/Materials | Build established: Scavenger-Tank 18872 | -8/Materials | Destroyed 8 combat bots 18963 | -8/Materials | Entered Factory 18963 | -7/Factory | Evolved 2 slots: Propulsion x1, Utility x1 18964 | -7/Factory | Identified exit to Storage 19249 | -7/Factory | Build established: Mutant 19287 | -7/Factory | Entered Storage 19771 | -7/Storage | Build established: Scavenger-Tank 19956 | -7/Storage | Destroyed 9 combat bots 19998 | -7/Storage | Discovered new exit (range 8) 20576 | -7/Storage | Used back door to open Recycling access 20576 | -7/Storage | Discovered new exit (range 5) 20767 | -7/Storage | Assisted by bots powering up and referring to "LRC-V3" 20875 | -7/Storage | Garrison activated, responded to threat 20944 | -7/Storage | Lost 3 allies 21011 | -7/Storage | Entered Recycling 21011 | -7/Recycling | Accompanied by 7 allies 21012 | -7/Recycling | Joined Warlord attack on 0b10 via Recycling 21012 | -7/Recycling | Identified exit to Scraptown 21012 | -7/Recycling | Identified exit to Factory 21070 | -7/Recycling | Build established: Commander-Tank 21306 | -7/Recycling | P-60 Hacker assimilated allied Trooper 4e 21731 | -7/Recycling | Scanned before Scraplab entrance 22495 | -7/Recycling | Entered Scraplab 22605 | -7/Recycling | Entered Scraptown 22605 | -7/Scraptown | Accompanied by 10 allies 22605 | -7/Scraptown | System corruption cleaned by C-Scrubber 22643 | -7/Scraptown | Build established: Commander-Mutant 23192 | -7/Scraptown | Discovered exit to Factory (range 7) 23412 | -7/Scraptown | Visited Red Mages 23532 | -7/Scraptown | Visited Awakened 23583 | -7/Scraptown | Visited Symbiants 23669 | -7/Scraptown | Visited TADAMA 23696 | -7/Scraptown | Heard Great Nut preacher, LISTEN AND RECITE! 24167 | -7/Scraptown | Visited CR-KLE's Repair Center 24195 | -7/Scraptown | Visited Cave Peace 24260 | -7/Scraptown | Visited Cyclists 25068 | -7/Scraptown | CR-KLE repaired 12 parts 25116 | -7/Scraptown | Turned away by UFD registrar 25159 | -7/Scraptown | DAS Turret deployed 25346 | -7/Scraptown | Build established: Commander-Tank 26164 | -7/Scraptown | Identified 8R-AWN's Boregun 26165 | -7/Scraptown | Assimilated Triborg with FLK Orb 26166 | -7/Scraptown | Attacked by Scraptown defenders 26235 | -7/Scraptown | Assimilated F4-GDC(E) with FLK Orb 26256 | -7/Scraptown | Assimilated VF-1AU(E) with FLK Orb 26268 | -7/Scraptown | Assimilated 7W-UVI(E) with FLK Orb 26283 | -7/Scraptown | Found Tri-treads 26297 | -7/Scraptown | Destroyed 8 combat bots 26299 | -7/Scraptown | Assimilated QR-ECB(E) with FLK Orb 26331 | -7/Scraptown | Lost 5 allies 26358 | -7/Scraptown | Destroyed 10 combat bots 26469 | -7/Scraptown | Core integrity fell below 50% 26483 | -7/Scraptown | Destroyed Optimus 26486 | -7/Scraptown | Found Corrupted Tri-treads 26501 | -7/Scraptown | Lost 10 parts (4n3u3w) 26504 | -7/Scraptown | Destroyed 29 combat bots 26552 | -7/Scraptown | Found Prototype Ballistic Cannon 26876 | -7/Scraptown | Build established: Scavenger-Tank 27383 | -7/Scraptown | Build established: Scavenger-Skirmisher 27951 | -7/Scraptown | Build established: Scavenger-Tank 28222 | -7/Scraptown | Destroyed 8 combat bots 28751 | -7/Scraptown | Destroyed 8 combat bots 28831 | -7/Scraptown | Visited Science Guys 29191 | -7/Scraptown | Discovered exit to Factory (range 5) 29530 | -7/Scraptown | Visited Curators Association 30447 | -7/Scraptown | Entered Cyclist Reading Room 30904 | -7/Scraptown | Visited Infowarlord's Domain 30928 | -7/Scraptown | Found Exp. Terrain Scan Processor 31020 | -7/Scraptown | Found Thermal Lance 31316 | -7/Scraptown | Visited Junk Repository 31378 | -7/Scraptown | Visited Derelict Rescue Squad 31593 | -7/Scraptown | Visited Abandonware Association 31622 | -7/Scraptown | Learned abandonware demo "MELTYB.EXE" 31669 | -7/Scraptown | Visited Scrapoid Research Area 31726 | -7/Scraptown | Visited Chapter 10 31803 | -7/Scraptown | Visited Scrap Suit Storage 31919 | -7/Scraptown | Found Surveybot 24 Chip 31941 | -7/Scraptown | Found Deploy-a-Sentry 32555 | -7/Scraptown | System corruption cleaned by C-Scrubber 33313 | -7/Scraptown | Entered Factory 33313 | -5/Factory | Evolved 4 slots: Power x1, Propulsion x2, Utility x1 33621 | -5/Factory | Build established: Scavenger-Mutant 33714 | -5/Factory | Spotted B-75 Beast 33725 | -5/Factory | Destroyed B-75 Beast 33789 | -5/Factory | AWS/Thermal suddenly broke down 33832 | -5/Factory | DAS Turret deployed 33913 | -5/Factory | First assault squad dispatched 33990 | -5/Factory | Build established: Scavenger-Tank 34061 | -5/Factory | Lost 5 allies 34189 | -5/Factory | Cargo convoy interrupted 34219 | -5/Factory | Discovered new exit (range 19) 34254 | -5/Factory | Entered Extension 34347 | -5/Extension | Rescued a captive Derelict 34348 | -5/Extension | Rescued a captive Derelict 34514 | -5/Extension | Rescued a captive Derelict 34515 | -5/Extension | Rescued a captive Derelict 34726 | -5/Extension | Rescued a captive Derelict 34979 | -5/Extension | Disrupted transfer network 35025 | -5/Extension | Spotted B-75 Beast 35047 | -5/Extension | Destroyed B-75 Beast 35064 | -5/Extension | Spotted B-75 Beast 35079 | -5/Extension | Lost 3 parts (2u1w) 35087 | -5/Extension | Destroyed B-75 Beast 35110 | -5/Extension | Lost 7 allies 35286 | -5/Extension | Rescued a captive Derelict 35288 | -5/Extension | Rescued a captive Derelict 35348 | -5/Extension | Rescued A7 35754 | -5/Extension | First assault squad dispatched 35828 | -5/Extension | Rescued a captive Derelict 35831 | -5/Extension | Rescued a captive Derelict 35835 | -5/Extension | Lost 5 allies 36043 | -5/Extension | Discovered new exit (range 12) 36045 | -5/Extension | Discovered new exit (range 8) 36085 | -5/Extension | Extracted ID and sensor layout for unrecognized location from A7's data core 36094 | -5/Extension | Disrupted transfer network 36101 | -5/Extension | Entered Cetus 36125 | -5/Cetus | Lost 13 allies 36127 | -5/Cetus | Spotted Cetus Guard 36127 | -5/Cetus | Spotted Cetus Guard 36130 | -5/Cetus | Spotted Cetus Guard 36130 | -5/Cetus | Spotted Cetus Guard 36141 | -5/Cetus | Core integrity fell below 50% 36144 | -5/Cetus | Destroyed Cetus Guard 36144 | -5/Cetus | Destroyed Cetus Guard 36145 | -5/Cetus | Destroyed Cetus Guard 36151 | -5/Cetus | Destroyed Cetus Guard 36174 | -5/Cetus | Lost 8 parts (1p3n2u2w) 36282 | -5/Cetus | Discovered new exit (range 16) 36348 | -5/Cetus | Spotted Cetus Guard 36348 | -5/Cetus | Spotted Cetus Guard 36351 | -5/Cetus | Spotted Cetus Guard 36351 | -5/Cetus | Spotted Cetus Guard 36357 | -5/Cetus | Destroyed Cetus Guard 36357 | -5/Cetus | Destroyed Cetus Guard 36358 | -5/Cetus | Destroyed Cetus Guard 36361 | -5/Cetus | Destroyed Cetus Guard 36372 | -5/Cetus | Discovered new exit (range 15) 36380 | -5/Cetus | Met Revision 17 36462 | -5/Cetus | Entered Archives 36463 | -5/Archives | System corruption reached 10% 36701 | -5/Archives | Discovered new exit (range 16) 36784 | -5/Archives | Discovered new exit (range 16) 36842 | -5/Archives | Discovered new exit (range 15) 36940 | -5/Archives | Entered Hub_04(d) 36982 | -5/Hub_04(d) | Imp. Hacking Suite fried by hacking feedback 37107 | -5/Hub_04(d) | Destroyed 11 combat bots 37177 | -5/Hub_04(d) | Network Hub disabled 37184 | -5/Hub_04(d) | Identified Siege Cannon 37240 | -5/Hub_04(d) | First assault squad dispatched 37268 | -5/Hub_04(d) | Discovered new exit (range 16) 37287 | -5/Hub_04(d) | Destroyed 13 combat bots 37306 | -5/Hub_04(d) | System corruption reached 30% 37353 | -5/Hub_04(d) | Spotted Lightning 37354 | -5/Hub_04(d) | Spotted Lightning 37366 | -5/Hub_04(d) | Destroyed 10 combat bots 37381 | -5/Hub_04(d) | Spotted Lightning 37410 | -5/Hub_04(d) | Destroyed Lightning 37435 | -5/Hub_04(d) | Lost 5 parts (1p1u3w) 37486 | -5/Hub_04(d) | Found Prototype Device 37491 | -5/Hub_04(d) | Destroyed Lightning 37497 | -5/Hub_04(d) | Found Prototype Device 37510 | -5/Hub_04(d) | Found Prototype Processor 37519 | -5/Hub_04(d) | Found Prototype Device 37536 | -5/Hub_04(d) | Network Hub disabled 37547 | -5/Hub_04(d) | Entered Factory 37547 | -4/Factory | Evolved 2 slots: Utility x2 37552 | -4/Factory | Identified Exp. Phase Shifter 37553 | -4/Factory | Identified Exp. EM Shield (x2) 37957 | -4/Factory | Discovered new exit (range 4) 38228 | -4/Factory | Discovered new exit (range 15) 38287 | -4/Factory | Build established: Scavenger-Mutant 38547 | -4/Factory | First assault squad dispatched 39123 | -4/Factory | Identified Exp. Targeting Computer 39207 | -4/Factory | Build established: Scavenger-Tank 39269 | -4/Factory | Discovered new exit (range 11) 39360 | -4/Factory | Core integrity fell below 50% 39376 | -4/Factory | Destroyed 8 combat bots 39378 | -4/Factory | Core integrity fell below 20% 39388 | -4/Factory | Destroyed by G-73 Enforcer with Heavy Laser Last Messages --------------- 39362_ Hardcell Cannon destroyed. 39362_ Hcp. Matter Pod destroyed. 39363_ Overheating: System interference. 39363_ Hardcell Cannon temporarily disabled. 39367_ Hardcell Cannon destroyed. 39368_ Huge Storage Unit destroyed. 39369_ R-10 Processor collects Sml. Matter Pod. 39371_ Quantum Reactor destroyed. 39378_ R-10 Processor collects Field Laser. 39382_ R-10 Processor collects Com. Wheel. 39382_ R-10 Processor collects Thermal Lance. 39383_ Extracted 43 matter. 39384_ Acquired Longsword +1. 39385_ R-10 Processor collects Hcp. Matter Pod. 39385_ Acquired 12 matter. 39386_ Acquired 10 matter. 39386_ R-10 Processor collects Exp. Phase Shifter. 39387_ Acquired 29 matter. 39388_ R-10 Processor collects Plasma Rifle. Map ----- +----------------------------------------------------+ | """ # "" # """"" ## ## """ """ | | """ # =####+############+#### """ """ | | """ # !!%!= # """ """ | | # !![ # | | # = + """ """ | | # % R # """ """ | | ##### =!% # """ """ | | ############%* ##########+########### | | ############[ ##### ##### | | ##?# # % #????????"""????????############# | | """" ###### #??????? ???????##### ### | | """" +][% ^ ###?????"""""???????????????????? | | """ #^ %! "#??? ?????????????????? | | " "" # ""#???#########?????????????????? | | !# ""#???"""""""""?????????????????? | | #######^^ T#???????""????????????????????? | | ! ! ""#?????? ????????????????????? | | !!!!* ""#######+#########?????????????? | | %!!! %%""#""""" ""?????????????? | | % =[!###"[[" "?????????????? | | ! R* !###"[[ ???????????????? | | ##########"; R[%###"[[ """ ""????????????????? | | ????????# # =%!## "" ;# ##????????????????? | | ??????????## ! %*=* * %# #" "#?????????? | | ????????# ; =*%kg]! R % % ; ????????? | | ??????????##% ! ==!/=!]%%@ < % / ????????? | | ???????????# ![/!!g%R k % % R ????????? | | ???????????# # [% "# ; "#?????????? | | ???????????#########""" "## ## """??????????? | | ???????????????????#"[[ "" ""?? [["??????????? | | ???????????????????#"[[ ???[???????R???? | | ???????????????????#"[[" % "?????????????? | | ???????????????????#""""" ? ""?????????????? | | ???????????????????#######+####?####?????????????? | | ?????????????????????????? ?? ??????????????????? | | ?????????????????????????????????????????????????? | | ?????????????????????????????????????????????????? | | ?????????????????????????????????????????????????? | | ?????????????????????????????????????????????????? | | ?????????????????????????????????????????????????? | | ?????????????????????????????????????????????????? | | ?????????????????????????????????????????????????? | | ?????????????????????????????????????????????????? | | ?????????????????????????????????????????????????? | | ?????????????????????????????????????????????????? | | ?????????????????????????????????????????????????? | | ?????????????????????????????????????????????????? | | !????????????????????????????????????????????????? | | ?????????????????????????????????????????????????? | | ?????????????????????????????????????????????????? | +----------------------------------------------------+ Best States ------------- Heat Dissipation 88 Coolant Potential 80 Energy Generation 49 Energy Capacity 990 Matter Stores 300 Matter Capacity 500 Sight Range 20 Robot Scan Range 20 Terrain Scan Density 10 Jamming Range 16 Additional Mass Support 12 Armor Coverage 1350 Resistance: KI 30 Resistance: EM 75 Core Shielding 20 Weapon Cycling 25 Phase Shifting 20 Evasion (%) 74 Targeting Accuracy 12 Recoil Reduction 6 Kinecelleration 30 Offensive Hacking 24 Defensive Hacking 12 Item Schematics ----------------- Huge Storage Unit | -10/Materials | Hacked Robot Schematics ------------------ None Fabricated ------------ Nothing Repaired ---------- Lgt. Treads | 37% | -10/Materials Hvy. Assault Rifle | 68% | -9/Materials Alien Tech Used ----------------- None Achievements -------------- None Challenges ------------ None Game ------ Seed FissionDynamicRefractor Manual? 0 Play Time 05:05:05 Cumulative 1202.0 hours Start 2025.07.07 @ 20:09:08 End 2025.07.08 @ 23:20:00 Sessions 5 Manual Loads 0 Difficulty Rogue Special Mode None Game No. 262 Rogue 230 Adventurer 31 Explorer 1 Win Type - Total 58 Types 37/2/9/7/0/0/2/0/0/1 Lore% 79 Gallery% 83 Achievement% 82 Wizard Run 0 Options --------- Layout 1 ASCII 0 Keyboard 0 Movement Arrows Keybinds 0 Fullscreen 1 Font 24/Terminus Map View 50x40 Zoom Use 0% Tactical HUD 1 Map Filters NONE Filters NONE Steam 1 RUN: 95cea93e-9649-4c2a-ac22-6920c0f28113